bitfinex-derivatives/quotes_ETHF0:USTF0_20250130
["timestamp","ask_amount","ask_price","bid_price","bid_amount"]
[1738232000987,0.62187,3216.6,3216.5,0.62187]
[1738232002875,0.62187,3216.6,3216.4,0.78728984]
[1738232002876,0.5442,3216.8,3216.4,0.78728984]
[1738232003082,0.5442,3216.8,3216.4,1.40918984]
[1738232003083,0.62188,3216.5,3216.4,1.40918984]
[1738232003280,2.09878,3216.8,3216.3,0.62191]
[1738232003281,0.6219,3216.4,3216.3,0.62191]
[1738232003782,3.2078,3216.4,3216.1,2.69308359]
[1738232004092,0.622,3215.9,3215.8,3.31509359]
[1738232004290,3.2078,3215.9,3215.8,3.31509359]
[1738232010586,3.8298,3215.9,3215.8,3.31509359]
[1738232010891,3.2078,3215.9,3215.8,3.31509359]
[1738232011390,1.12166,3216.2,3216.1,0.62196]
[1738232011391,0.33040919,3216.2,3216.1,0.62196]
[1738232011687,3.7289,3216.3,3216.2,0.62194]
[1738232014193,3.2078,3216.3,3216.2,0.62194]
[1738232015895,4.36896,3216.7,3216.6,0.62186]
[1738232017703,0.62186,3216.6,3216.5,0.62187]
[1738232018896,4.36895,3216.7,3216.6,0.62186]
[1738232019097,3.7471,3216.7,3216.6,0.62186]
[1738232019700,4.36894,3216.7,3216.6,0.62186]
[1738232021001,3.7471,3216.7,3216.1,3.73393291]
[1738232021201,0.62189,3216.5,3216.4,0.62189]
[1738232021402,0.62187,3216.6,3216.5,0.62187]
[1738232022105,3.7471,3216.7,3216.1,2.94283291]
[1738232022309,0.62186,3216.6,3216.1,2.94283291]
[1738232022509,0.62186,3216.6,3216.5,0.62188]
[1738232022816,3.7471,3216.7,3216.1,2.94283291]
[1738232023012,3.2078,3216.3,3215.8,2.69308359]
[1738232023214,0.62199,3216.0,3215.9,0.62199]
[1738232023415,0.62198,3216.0,3215.9,0.62198]
[1738232023809,0.5364,3216.1,3215.8,2.69308359]
[1738232024013,1.15837,3216.1,3216.0,0.62198]
[1738232024708,0.622,3215.9,3215.8,0.87485106]
[1738232024904,3.8298,3215.9,3215.8,0.87485106]
[1738232025515,3.2078,3215.9,3215.8,0.87485106]
[1738232025906,3.8298,3215.9,3215.8,0.87485106]
[1738232027706,3.2078,3215.9,3215.8,0.87485106]
[1738232028416,3.8298,3215.9,3215.8,0.87485106]
[1738232029015,3.8298,3215.9,3215.8,0.25284106]
[1738232029320,0.62202,3215.8,3215.7,0.62203]
[1738232031520,0.62202,3215.8,3215.7,0.87714782]
[1738232031718,3.82981,3215.9,3215.8,0.62202]
[1738232033621,0.62202,3215.8,3215.7,0.62203]
[1738232034310,0.62205,3215.7,3215.6,0.62204]
[1738232034623,0.62203,3215.8,3215.7,0.62203]
[1738232034822,0.62205,3215.7,3215.6,0.62205]
[1738232036024,0.62203,3215.8,3215.7,0.62203]
[1738232037222,3.2078,3215.9,3215.5,2.93998952]
[1738232037423,0.62202,3215.8,3215.6,0.62204]
[1738232037825,0.62202,3215.8,3215.7,0.62204]
[1738232038022,3.2078,3215.9,3215.5,2.93998952]
[1738232038325,0.62204,3215.7,3215.6,0.62204]
[1738232039622,3.2078,3215.9,3215.5,2.93998952]
[1738232039822,3.2078,3215.9,3215.7,0.62203]
[1738232039823,0.62203,3215.8,3215.7,0.62203]
[1738232040522,3.2078,3215.9,3215.5,2.93998952]
[1738232040720,2.69308359,3218.8,3216.4,0.6219]
[1738232040721,3.8297,3216.5,3216.4,0.6219]
[1738232042024,3.2078,3216.5,3216.0,1.55493]
[1738232042223,0.6219,3216.4,3216.3,0.6219]
[1738232043025,0.62193,3216.3,3216.2,0.62192]
[1738232043728,0.62191,3216.4,3216.3,0.6219]
[1738232043928,3.8297,3216.5,3216.4,0.6219]
[1738232044825,3.2078,3216.5,3216.0,1.55495]
[1738232045022,0.62191,3216.4,3216.3,0.6219]
[1738232045229,3.2078,3216.5,3216.4,0.6219]
[1738232046826,3.82968,3216.5,3216.4,0.6219]
[1738232047027,3.82968,3216.5,3216.1,2.69308359]
[1738232047028,3.2078,3216.5,3216.1,2.69308359]
[1738232047229,3.2078,3216.5,3216.0,0.25554991]
[1738232047430,0.62194,3216.2,3216.1,0.62195]
[1738232048128,0.6219,3216.4,3216.0,0.62196]
[1738232048325,0.5121,3216.1,3216.0,0.62196]
[1738232048726,1.0547,3216.1,3216.0,0.62196]
[1738232049025,1.0547,3216.1,3215.8,4.08151667]
[1738232049221,0.498,3216.0,3215.9,0.622]
[1738232049423,1.0547,3216.1,3215.9,0.622]
[1738232049628,0.5426,3216.1,3216.0,0.62198]
[1738232050022,0.5426,3216.1,3215.8,4.08150667]
[1738232050328,0.62205,3215.7,3215.2,6.17698359]
[1738232050523,0.62205,3215.7,3215.6,0.62206]
[1738232050924,0.5264,3215.8,3215.6,0.62206]
[1738232051130,0.498,3215.7,3215.6,0.62206]
[1738232056334,0.498,3215.7,3215.6,0.93044107]
[1738232057435,1.12005,3215.7,3215.5,0.62206]
[1738232057630,0.5059,3215.6,3215.5,0.94051155]
[1738232059039,0.5059,3215.6,3215.5,0.62206]
[1738232060334,1.12796,3215.6,3215.5,0.62206]
[1738232060834,0.5059,3215.6,3215.5,0.62206]
[1738232062535,0.5059,3215.6,3215.4,0.31453109]
[1738232062730,1.12797,3215.6,3215.2,5.90088359]
[1738232063034,1.12797,3215.6,3215.4,0.62207]
[1738232063230,1.12797,3215.6,3215.5,0.62207]
[1738232065438,0.5059,3215.6,3215.2,6.19468574]
[1738232065637,0.62211,3215.3,3215.2,3.60900574]
[1738232065842,0.6221,3215.4,3215.3,0.6221]
[1738232066044,3.82989,3215.5,3215.3,0.6221]
[1738232067444,1.12796,3215.6,3215.2,2.98688574]
[1738232067747,1.12796,3215.6,3215.5,0.62207]
[1738232069137,1.12796,3215.6,3215.2,2.98688574]
[1738232069342,0.62208,3215.5,3215.4,0.62208]
[1738232069842,0.62208,3215.5,3215.2,2.98688574]
[1738232069843,0.5059,3215.6,3215.5,0.62207]
[1738232070042,0.498,3215.7,3215.6,0.62206]
[1738232071843,3.2078,3216.5,3215.8,0.62202]
[1738232072052,1.14693,3216.3,3216.2,0.62194]
[1738232072542,0.525,3216.3,3216.1,0.62195]
[1738232073441,0.525,3216.3,3216.2,0.62194]
[1738232073838,1.14692,3216.3,3216.2,0.62194]
[1738232074042,0.62192,3216.3,3215.9,2.69308359]
[1738232074249,0.62194,3216.2,3216.0,0.62196]
[1738232074547,0.62194,3216.2,3216.1,0.62196]
[1738232074741,1.14423,3216.3,3216.1,0.62196]
[1738232074940,1.63913,3216.3,3216.1,0.62196]
[1738232076243,0.62194,3216.2,3216.1,0.62196]
[1738232077246,1.63913,3216.3,3216.1,0.62196]
[1738232077850,1.0172,3216.3,3215.9,2.98578978]
[1738232078040,0.62194,3216.2,3216.1,0.62196]
[1738232079345,1.63913,3216.3,3216.1,0.62196]
[1738232081646,0.62194,3216.2,3216.1,0.62196]
[1738232082646,1.0172,3216.3,3216.1,0.62196]
[1738232082845,1.63913,3216.3,3216.1,0.62196]
[1738232083145,0.62194,3216.2,3216.0,0.62197]
[1738232083350,1.0172,3216.3,3216.0,0.62197]
[1738232083548,0.62196,3216.1,3215.9,0.62198]
[1738232083738,0.62204,3215.7,3215.6,4.12254606]
[1738232083941,0.62204,3215.7,3215.6,3.50049606]
[1738232084440,0.62204,3215.7,3215.6,4.12255606]
[1738232085842,0.62204,3215.7,3215.6,3.50049606]
[1738232086143,0.62204,3215.7,3215.6,4.12254606]
[1738232086342,0.62204,3215.7,3215.6,3.2078]
[1738232086543,0.62208,3215.5,3215.3,0.9238851]
[1738232086750,0.5327,3215.4,3215.3,0.9238851]
[1738232086946,1.0705,3215.4,3215.3,0.9238851]
[1738232087548,1.69259,3215.4,3215.3,0.9239051]
[1738232088543,1.69259,3215.4,3215.3,0.3017951]
[1738232088738,1.69259,3215.4,3215.2,0.62212]
[1738232089646,1.69259,3215.4,3215.1,0.8108125]
[1738232089847,1.69259,3215.4,3215.3,0.62211]
[1738232090041,0.62212,3215.3,3215.2,0.62213]
[1738232090249,1.0705,3215.4,3215.1,0.3054125]
[1738232090447,1.6926,3215.4,3215.2,0.62212]
[1738232091441,1.0705,3215.4,3215.0,12.21443548]
[1738232091749,1.6926,3215.4,3215.0,12.21443548]
[1738232092949,1.6926,3215.4,3215.2,0.62212]
[1738232094346,0.62211,3215.3,3215.2,0.62212]
[1738232094548,1.6926,3215.4,3215.2,1.89987044]
[1738232095147,1.0705,3215.4,3215.2,1.89988044]
[1738232095349,1.69261,3215.4,3215.2,1.89988044]
[1738232095550,1.0705,3215.4,3215.2,1.27775044]
[1738232095751,0.62211,3215.3,3215.2,1.27775044]
[1738232096150,0.62214,3215.2,3215.0,11.42126233]
[1738232096647,0.62215,3215.1,3215.0,10.79910233]
[1738232097154,0.62215,3215.1,3215.0,9.2280625]
[1738232097845,0.62215,3215.1,3215.0,6.0202625]
[1738232098049,4.76309,3215.3,3214.8,1.57667631]
[1738232098251,0.62219,3214.9,3214.8,1.57667631]
[1738232098555,0.62219,3214.9,3214.8,0.29892587]
[1738232098747,0.62219,3214.9,3214.7,1.50224886]
[1738232098748,1.64419,3214.9,3214.7,1.50224886]
[1738232099348,1.16087,3215.0,3214.9,0.62219]
[1738232099653,0.5387,3215.0,3214.9,0.62219]
[1738232099954,1.022,3215.1,3215.0,0.62217]
[1738232099955,0.5223,3215.1,3215.0,0.62217]
[1738232103050,0.504362,3215.4,3215.2,0.62213]
[1738232103250,0.004662,3215.4,3215.3,0.62211]
[1738232103656,0.004662,3215.4,3215.1,0.5001]
[1738232103849,0.004662,3215.4,3215.2,0.62212]
[1738232104046,0.62212,3215.3,3215.1,0.62214]
[1738232104254,3.2078,3216.1,3215.2,1.5553]
[1738232104448,1.15704,3216.2,3215.5,4.25530388]
[1738232104660,0.62199,3216.0,3215.7,0.62204]
[1738232104857,0.62197,3216.1,3215.8,0.62201]
[1738232105054,0.62197,3216.1,3215.6,0.5229]
[1738232105250,0.62197,3216.1,3215.9,0.622]
[1738232105557,3.7429,3216.2,3215.9,0.622]
[1738232105558,3.747562,3216.2,3215.9,0.622]
[1738232105757,4.369512,3216.2,3215.6,0.5229]
[1738232105957,4.369512,3216.2,3215.9,0.62198]
[1738232106153,4.369512,3216.2,3216.0,0.62198]
[1738232106356,4.369512,3216.2,3215.9,0.62198]
[1738232106555,4.369512,3216.2,3215.6,0.5229]
[1738232106556,4.369512,3216.2,3216.0,0.62197]
[1738232107253,4.369512,3216.2,3215.9,0.62198]
[1738232107651,4.369512,3216.2,3216.0,0.62197]
[1738232107853,4.369502,3216.2,3216.0,0.62197]
[1738232108053,3.747562,3216.2,3216.1,0.62196]
[1738232110248,9.67205397,3268.6,3215.9,6.42271388]
[1738232110249,3.2078,3216.8,3215.9,6.42271388]
[1738232110559,0.62187,3216.6,3216.4,0.6219]
[1738232112161,0.5106,3216.7,3216.2,2.70011388]
[1738232112354,0.5106,3216.7,3216.5,0.62186]
[1738232112558,1.13244,3216.7,3216.5,0.62186]
[1738232115160,1.13244,3216.7,3216.2,3.49774926]
[1738232115360,1.13244,3216.7,3216.4,0.62188]
[1738232115560,0.5106,3216.7,3216.5,0.62187]
[1738232115761,1.13244,3216.7,3216.5,0.62187]
[1738232115957,1.13244,3216.7,3216.3,0.4401]
[1738232115958,0.5106,3216.7,3216.3,0.4401]
[1738232116155,0.5106,3216.7,3216.6,0.62186]
[1738232116751,0.004662,3216.8,3216.7,0.62184]
[1738232117963,0.004662,3216.8,3216.2,3.49774926]
[1738232118266,0.62186,3216.7,3216.5,0.62187]
[1738232118866,0.529,3216.6,3216.2,2.99204926]
[1738232119068,0.5403,3216.5,3216.4,0.62189]
[1738232119759,0.529,3216.6,3216.2,2.99204926]
[1738232119964,0.004662,3216.8,3216.7,0.62184]
[1738232124568,0.004662,3216.8,3216.7,5.10577948]
[1738232124764,0.4911,3217.4,3216.7,5.76007896]
[1738232124959,0.4911,3217.4,3217.3,1.89786948]
[1738232125161,0.17301264,3217.5,3217.4,0.62171]
[1738232125359,3.2078,3217.6,3217.5,0.62169]
[1738232125655,3.2078,3217.6,3217.5,1.89782948]
[1738232126265,2.33611102,3217.6,3217.5,1.89782948]
[1738232126465,0.004662,3217.9,3217.8,0.62163]
[1738232126664,0.004662,3217.9,3217.8,3.31600682]
[1738232128063,1.65182,3218.4,3217.8,3.31600682]
[1738232128064,1.0303,3218.4,3217.8,2.69437682]
[1738232128261,1.0303,3218.4,3218.1,0.62155]
[1738232128462,0.5161,3218.3,3218.1,0.62155]
[1738232128859,1.13764,3218.3,3218.0,0.62158]
[1738232129770,0.5161,3218.3,3218.1,0.62157]
[1738232130465,0.62163,3217.8,3217.5,6.52385682]
[1738232130667,0.62166,3217.7,3217.5,5.90217682]
[1738232130862,0.62173,3217.3,3217.2,2.69903882]
[1738232131076,0.62172,3217.4,3217.2,2.69903882]
[1738232131260,0.62173,3217.3,3217.2,2.69903882]
[1738232131573,3.82173,3217.3,3217.2,2.69903882]
[1738232132470,3.82173,3217.3,3217.2,0.004662]
[1738232132667,3.2,3217.3,3217.2,0.004662]
[1738232133167,0.62172,3217.4,3217.2,0.004662]
[1738232133873,0.62173,3217.3,3217.2,0.004662]
[1738232135170,0.5161,3217.6,3217.2,0.004662]
[1738232135373,0.62172,3217.4,3217.2,0.004662]
[1738232136263,0.5161,3217.6,3217.5,0.62169]
[1738232136575,0.5161,3217.6,3217.5,3.31606682]
[1738232136970,1.13777,3217.6,3217.5,2.69437682]
[1738232137170,0.62167,3217.6,3217.3,0.62172]
[1738232137477,0.62166,3217.7,3217.4,0.6217]
[1738232138066,3.2078,3217.9,3217.2,2.69903882]
[1738232138270,0.62173,3217.3,3217.2,2.69903882]
[1738232138770,0.62168,3217.6,3217.3,0.62172]
[1738232138975,0.5387,3217.5,3217.3,0.62172]
[1738232140666,0.5387,3217.5,3217.4,3.82951]
[1738232140870,0.62164,3217.8,3217.5,0.62168]
[1738232141071,1.15824,3217.8,3217.5,3.31605682]
[1738232141266,1.15824,3217.8,3217.6,0.62167]
[1738232141466,1.15824,3217.8,3217.5,2.69437682]
[1738232141666,1.15824,3217.8,3217.5,3.31604682]
[1738232142375,0.1986,3218.1,3218.0,0.62159]
[1738232142574,0.1986,3218.1,3218.0,3.31596682]
[1738232142773,0.1986,3218.1,3218.0,2.69437682]
[1738232142973,0.1986,3218.1,3217.9,3.2078]
[1738232143175,0.62159,3218.0,3217.9,3.2078]
[1738232144571,0.62159,3218.0,3217.4,2.97118266]
[1738232144572,0.62166,3217.7,3217.4,3.59287266]
[1738232144973,0.4999,3217.6,3217.4,3.59287266]
[1738232145469,0.4999,3217.6,3217.4,2.97118266]
[1738232145675,1.12157,3217.6,3217.4,3.31607682]
[1738232146468,1.11869,3217.5,3217.4,2.69437682]
[1738232146667,1.64099,3217.5,3217.4,2.69437682]
[1738232146874,1.64099,3217.5,3217.2,3.834192]
[1738232147067,1.64099,3217.5,3217.2,3.212462]
[1738232147267,1.0193,3217.5,3217.2,3.212462]
[1738232147474,1.0193,3217.5,3217.4,3.31608682]
[1738232148072,1.0193,3217.5,3217.4,2.69437682]
[1738232148877,1.64099,3217.5,3217.4,2.69437682]
[1738232150372,0.62173,3217.3,3217.2,3.212462]
[1738232151980,1.0193,3217.5,3217.4,0.62171]
[1738232152180,1.0193,3217.5,3217.4,3.31608682]
[1738232153078,0.497,3217.5,3217.4,3.31608682]
[1738232153274,0.5344,3217.6,3217.5,0.62169]
[1738232154074,0.5344,3217.6,3217.4,3.31606682]
[1738232155167,1.15608,3217.6,3217.4,2.69437682]
[1738232155376,0.62169,3217.5,3217.4,2.69437682]
[1738232155573,0.62169,3217.5,3217.3,0.62172]
[1738232155977,1.15608,3217.6,3217.3,0.62172]
[1738232156279,1.15608,3217.6,3217.2,3.212462]
[1738232156280,1.15608,3217.6,3217.4,0.62171]
[1738232156580,0.5344,3217.6,3217.5,0.62169]
[1738232157775,0.5344,3217.6,3217.5,1.13419]
[1738232160177,0.5022,3217.8,3217.7,0.62165]
[1738232160481,1.0088,3217.8,3217.7,0.62165]
[1738232162278,0.5066,3217.8,3217.7,0.62165]
[1738232162984,0.5066,3217.8,3217.5,0.79254416]
[1738232163288,0.5066,3217.8,3217.4,2.69437682]
[1738232163289,0.62173,3217.3,3217.2,0.004662]
[1738232163688,3.2078,3217.5,3217.2,0.626402]
[1738232163891,0.4907,3217.7,3217.4,2.69437682]
[1738232164186,0.4907,3217.7,3217.6,0.62167]
[1738232165288,0.5254,3218.1,3217.4,2.69437682]
[1738232165483,0.5254,3218.1,3217.3,7.24511]
[1738232165484,1.5508,3218.1,3217.9,0.6216]
[1738232166080,1.5508,3218.1,3217.7,2.69437682]
[1738232166277,1.55399,3218.0,3217.4,3.31607682]
[1738232166478,1.5508,3218.1,3217.5,0.62167]
[1738232166787,0.62165,3217.8,3217.5,0.62167]
[1738232166988,0.62165,3217.8,3217.4,2.98001299]
[1738232167190,0.62165,3217.8,3217.5,0.62167]
[1738232167591,0.62165,3217.8,3217.4,2.98001299]
[1738232167887,0.62165,3217.8,3217.5,0.62167]
[1738232168082,0.62165,3217.8,3217.6,0.62166]
[1738232168890,1.55399,3218.0,3217.4,2.69437682]
[1738232169091,0.62169,3217.5,3217.3,0.62172]
[1738232169298,1.5671,3217.4,3217.3,0.62172]
[1738232170188,1.0752,3217.4,3217.3,0.62172]
[1738232170390,1.564,3217.9,3217.6,0.62166]
[1738232170585,1.564,3217.9,3217.7,0.62165]
[1738232170586,2.18562,3217.9,3217.7,0.62165]
[1738232171187,1.564,3217.9,3217.5,2.69437682]
[1738232171491,2.18562,3217.9,3217.7,0.62164]
[1738232172291,1.564,3217.9,3217.5,2.69437682]
[1738232172686,1.564,3217.9,3217.5,3.31604682]
[1738232172889,1.564,3217.9,3217.5,0.62167]
[1738232172890,0.62165,3217.7,3217.5,0.62167]
[1738232173392,0.62168,3217.6,3217.4,0.62171]
[1738232173589,0.62166,3217.7,3217.5,0.62168]
[1738232173793,0.62169,3217.5,3217.3,1.39647064]
[1738232174094,0.5266,3217.4,3217.3,1.39647064]
[1738232175198,0.5266,3217.4,3217.3,0.27585064]
[1738232175391,0.5266,3217.4,3217.3,0.62173]
[1738232175597,1.0323,3217.4,3217.3,0.62173]
[1738232176496,0.62173,3217.3,3217.2,5.90683882]
[1738232176795,0.62173,3217.3,3217.2,0.004662]
[1738232177096,1.14283,3217.3,3217.2,0.004662]
[1738232178191,0.5211,3217.3,3216.6,3.31622682]
[1738232178398,0.5211,3217.3,3216.6,2.69437682]
[1738232178399,0.62183,3216.8,3216.6,2.69437682]
[1738232178600,1.0215,3216.7,3216.6,2.69437682]
[1738232179100,0.62188,3216.5,3216.3,6.52408682]
[1738232179295,1.0215,3216.7,3216.3,6.52874882]
[1738232179296,0.62187,3216.6,3216.3,6.52874882]
[1738232179788,0.62187,3216.6,3216.3,6.80013724]
[1738232180596,1.026162,3216.7,3216.3,6.17822724]
[1738232180792,1.648012,3216.7,3216.4,0.62189]
[1738232180993,0.505062,3216.7,3216.6,3.31623682]
[1738232183199,0.505062,3216.7,3216.6,2.69437682]
[1738232185590,0.505062,3216.7,3216.3,6.80013724]
[1738232185591,0.62188,3216.6,3216.3,6.80013724]
[1738232187102,0.62189,3216.5,3216.3,6.17822724]
[1738232187297,0.505062,3216.7,3216.3,6.17822724]
[1738232187505,1.6594,3216.4,3216.3,0.004662]
[1738232191391,1.6594,3216.4,3215.5,0.62206]
[1738232191392,0.62205,3215.7,3215.5,0.62206]
[1738232191596,1.16106,3215.6,3215.5,0.62206]
[1738232191797,1.0607,3215.6,3215.5,0.62206]
[1738232192198,1.0607,3215.6,3215.5,0.27415891]
[1738232192405,1.0607,3215.6,3215.5,0.62207]
[1738232192898,1.0607,3215.6,3215.4,2.69437682]
[1738232193098,1.68277,3215.6,3215.3,0.6221]
[1738232193306,1.68277,3215.6,3215.2,3.739462]
[1738232193307,1.0607,3215.6,3215.2,3.739462]
[1738232193504,0.62207,3215.5,3215.2,4.361592]
[1738232193905,4.2685,3215.6,3215.2,4.00287205]
[1738232194105,0.62211,3215.3,3215.2,3.47587205]
[1738232194700,0.5251,3215.5,3215.2,3.47587205]
[1738232194905,0.62211,3215.4,3215.2,3.47587205]
[1738232195105,0.5251,3215.5,3215.2,3.47587205]
[1738232195306,0.62211,3215.3,3215.2,3.47587205]
[1738232195907,0.62211,3215.4,3215.2,3.47587205]
[1738232196104,0.62211,3215.4,3215.2,4.09800205]
[1738232196305,0.62211,3215.4,3215.2,3.47587205]
[1738232196612,0.5251,3215.5,3215.2,3.212462]
[1738232196801,0.62211,3215.4,3215.2,3.729462]
[1738232198111,0.5251,3215.5,3215.2,4.351582]
[1738232198112,1.14718,3215.5,3215.2,4.351582]
[1738232199110,0.5251,3215.5,3215.2,4.351582]
[1738232199308,0.6221,3215.4,3215.2,3.729462]
[1738232199502,0.62198,3216.0,3215.7,0.62202]
[1738232199706,1.0459,3216.2,3215.8,3.31638682]
[1738232199906,0.62197,3216.1,3215.9,0.62199]
[1738232200112,1.0459,3216.2,3215.9,0.4941]
[1738232200411,1.66784,3216.2,3216.0,0.62197]
[1738232200608,1.0459,3216.2,3215.9,0.9993]
[1738232200911,0.62201,3215.9,3215.6,0.62204]
[1738232201714,0.62202,3215.8,3215.6,0.62204]
[1738232201905,0.62202,3215.8,3215.5,3.21597682]
[1738232201906,0.62205,3215.7,3215.5,3.21597682]
[1738232202110,0.62205,3215.7,3215.5,3.83804682]
[1738232202314,0.62204,3215.7,3215.5,3.83804682]
[1738232202615,3.2078,3216.1,3215.5,3.83804682]
[1738232202815,0.62203,3215.8,3215.5,3.83804682]
[1738232203300,3.2078,3216.1,3215.5,3.83804682]
[1738232203504,0.62204,3215.7,3215.5,3.21597682]
[1738232203810,0.62204,3215.7,3215.5,3.83804682]
[1738232204006,3.2078,3216.1,3215.5,3.21597682]
[1738232204314,0.62202,3215.8,3215.5,3.83803682]
[1738232206210,0.62211,3215.3,3215.2,0.004662]
[1738232206417,3.82991,3215.3,3215.2,0.004662]
[1738232206713,7.02991,3215.3,3215.2,0.004662]
[1738232210118,0.62228,3214.5,3214.4,0.62226]
[1738232210514,0.62229,3214.4,3214.3,1.10595737]
[1738232210811,1.12329,3214.4,3214.3,1.10596737]
[1738232211011,1.12329,3214.4,3214.3,0.48365737]
[1738232214613,0.62235,3214.1,3214.0,0.39062689]
[1738232217820,3.83015,3214.1,3214.0,0.39062689]
[1738232223323,0.62253,3213.2,3213.1,0.62253]
[1738232223521,0.62254,3213.1,3213.0,3.83034]
[1738232224115,5.90217682,3213.2,3212.5,3.2078]
[1738232224419,3.2078,3212.8,3212.1,5.90217682]
[1738232224621,0.62268,3212.4,3212.2,1.1279]
[1738232224825,0.5381,3212.7,3212.2,0.5052]
[1738232225120,0.5381,3212.7,3212.1,3.2078]
[1738232225325,0.62279,3211.9,3211.7,3.2078]
[1738232225523,0.62278,3211.9,3211.7,3.2078]
[1738232226123,0.62277,3211.9,3211.7,3.2078]
[1738232226331,3.83049,3212.4,3211.8,2.69437682]
[1738232226623,0.62271,3212.3,3211.9,0.62276]
[1738232227129,0.5037,3212.6,3211.8,3.21377682]
[1738232227521,3.2078,3212.5,3211.8,3.21377682]
[1738232227823,0.62275,3212.0,3211.8,2.69437682]
[1738232228029,4.76445,3212.5,3211.8,2.69437682]
[1738232228030,3.2078,3212.5,3211.8,2.69437682]
[1738232228222,0.62279,3211.9,3211.7,3.2078]
[1738232228433,1.5567,3212.4,3211.7,3.2078]
[1738232228628,0.62279,3211.8,3211.7,3.2078]
[1738232229928,1.0118,3212.1,3211.7,3.2078]
[1738232230130,0.62278,3211.9,3211.7,3.2078]
[1738232230821,0.62276,3212.0,3211.7,3.2078]
[1738232231018,0.62273,3212.2,3211.8,0.62279]
[1738232231222,0.4948,3212.4,3211.7,3.2078]
[1738232231521,0.62272,3212.2,3211.9,0.62277]
[1738232231723,0.62272,3212.2,3211.7,3.2078]
[1738232231929,0.62272,3212.2,3211.9,0.62276]
[1738232233331,0.62272,3212.2,3212.0,0.62275]
[1738232233733,0.4948,3212.4,3212.2,0.6227]
[1738232233734,0.62268,3212.4,3212.2,0.6227]
[1738232234033,0.62273,3212.2,3211.9,0.62276]
[1738232234527,0.6227,3212.3,3212.0,0.62274]
[1738232234825,3.83047,3212.5,3212.2,0.62271]
[1738232235233,3.2078,3212.5,3211.8,3.23067682]
[1738232235532,0.62268,3212.4,3212.1,0.62272]
[1738232236219,0.62268,3212.4,3212.2,0.62271]
[1738232236419,3.2078,3212.5,3212.3,0.62268]
[1738232236626,3.83046,3212.5,3212.2,0.6227]
[1738232237021,3.83046,3212.5,3211.9,0.62277]
[1738232237022,0.62272,3212.2,3211.9,0.62277]
[1738232237929,3.2078,3212.5,3211.8,0.5363]
[1738232238132,0.62277,3211.9,3211.8,0.5363]
[1738232238529,0.4979,3212.4,3211.8,0.5363]
[1738232238727,0.62272,3212.2,3211.9,0.62276]
[1738232238927,0.4979,3212.4,3211.8,0.5363]
[1738232239132,0.4979,3212.4,3212.0,0.62274]
[1738232239437,0.62269,3212.3,3211.8,3.23067682]
[1738232239634,3.2078,3212.5,3211.8,3.23067682]
[1738232239834,3.83046,3212.5,3212.3,0.62269]
[1738232240034,3.2078,3212.5,3211.9,0.5334]
[1738232240336,3.83046,3212.5,3212.3,0.62268]
[1738232240825,3.83046,3212.5,3211.8,4.78762682]
[1738232240826,3.2078,3212.5,3211.8,3.23067682]
[1738232241025,0.62271,3212.3,3211.8,3.23067682]
[1738232241236,0.62271,3212.3,3212.0,0.62274]
[1738232241431,0.62268,3212.4,3212.1,0.62271]
[1738232241823,0.6227,3212.3,3212.0,0.62274]
[1738232242229,3.2078,3212.5,3211.8,3.23067682]
[1738232242433,3.2078,3212.5,3212.1,0.62272]
[1738232242837,0.62268,3212.4,3212.2,0.62271]
[1738232243036,3.83046,3212.5,3212.3,0.62269]
[1738232243336,3.83046,3212.5,3211.8,4.78762682]
[1738232243337,0.6227,3212.3,3211.8,3.23067682]
[1738232243536,0.6227,3212.3,3212.1,0.62273]
[1738232243734,0.6227,3212.3,3211.8,3.23067682]
[1738232244130,0.6227,3212.3,3212.0,0.62274]
[1738232244733,3.2078,3212.5,3211.8,3.23067682]
[1738232244940,0.62268,3212.4,3212.2,0.62271]
[1738232245238,3.2078,3212.5,3212.2,0.62271]
[1738232245430,0.62268,3212.4,3212.2,0.62271]
[1738232245934,3.2078,3212.5,3211.9,1.55691]
[1738232246241,3.2078,3212.5,3212.4,0.62267]
[1738232246744,3.83046,3212.5,3212.3,0.62269]
[1738232247040,0.62269,3212.4,3212.1,3.21037682]
[1738232247341,0.62269,3212.4,3212.1,3.83308682]
[1738232247542,3.83046,3212.5,3212.3,0.62269]
[1738232248225,3.83046,3212.5,3212.2,0.6227]
[1738232248226,0.62267,3212.4,3212.2,0.6227]
[1738232249034,0.62267,3212.4,3212.3,0.5188]
[1738232250343,3.83047,3212.5,3212.3,1.14148]
[1738232251150,0.62267,3212.5,3212.3,1.14148]
[1738232251640,0.62267,3212.4,3212.3,1.14149]
[1738232251843,3.2,3212.6,3212.3,0.5188]
[1738232252036,3.7395,3212.9,3212.3,0.5188]
[1738232252235,3.83038,3212.9,3212.7,0.62261]
[1738232252643,0.6226,3212.8,3212.6,0.62262]
[1738232253137,3.2,3212.9,3212.4,3.20167682]
[1738232253335,0.62266,3212.6,3212.4,0.62267]
[1738232254045,0.4938,3212.5,3212.3,0.5188]
[1738232254337,1.11646,3212.5,3212.3,1.14149]
[1738232254734,0.62267,3212.4,3212.3,0.5188]
[1738232255142,0.62267,3212.4,3212.2,0.6227]
[1738232255340,0.5407,3212.3,3212.2,0.6227]
[1738232256145,0.5407,3212.3,3212.1,3.31709682]
[1738232256345,0.62273,3212.2,3212.0,1.4018021]
[1738232256737,0.62273,3212.1,3212.0,0.2671621]
[1738232256941,0.62273,3212.1,3211.7,3.2078]
[1738232256942,0.62279,3211.9,3211.7,3.2078]
[1738232257350,0.62279,3211.8,3211.7,3.2078]
[1738232257543,1.67999,3211.8,3211.7,3.2078]
[1738232258548,0.62285,3211.5,3211.4,0.4972]
[1738232258743,0.62285,3211.5,3211.3,3.2078]